bitfinex/quotes_SOLUSD_20250803
["timestamp","ask_amount","ask_price","bid_price","bid_amount"]
[1754181716723,0.1,157.88,157.83,51.26]
[1754181716895,13.38385085,157.87,157.83,51.94]
[1754181717217,0.1,157.88,157.84,0.68]
[1754181717517,0.1,157.88,157.84,14.06385085]
[1754181718115,13.38385085,157.89,157.84,0.68]
[1754181718296,13.38385085,157.89,157.84,14.06385085]
[1754181718838,0.72,157.91,157.84,14.06385085]
[1754181719016,0.72,157.91,157.87,13.38385085]
[1754181719017,0.03,157.91,157.87,13.38385085]
[1754181719312,0.03,157.91,157.88,51.12]
[1754181719490,0.03,157.91,157.9,13.38385085]
[1754181719997,0.03,157.91,157.9,14.06385085]
[1754181720206,0.69,158.03,157.93,26.0]
[1754181720393,13.38385085,158.02,157.94,26.68]
[1754181720597,13.38385085,157.98,157.95,51.02]
[1754181720815,0.69,158.01,157.95,65.08385085]
[1754181720997,13.38385085,158.01,157.96,14.06385085]
[1754181721191,13.38385085,158.0,157.96,0.68]
[1754181721600,13.38385085,158.03,157.98,13.38385085]
[1754181721802,13.38385085,158.03,157.99,51.0]
[1754181722006,13.38385085,158.02,157.99,51.0]
[1754181722531,13.38385085,158.03,157.99,51.0]
[1754181722744,13.38385085,158.03,157.99,51.68]
[1754181723031,13.38385085,158.04,158.0,0.68]
[1754181723330,26.0,158.05,158.0,0.68]
[1754181723542,1.325724,158.07,158.01,0.68]
[1754181723724,1.325724,158.07,158.02,13.38385085]
[1754181724032,1.325724,158.07,158.04,13.38385085]
[1754181724195,1.325724,158.07,158.05,64.28385085]
[1754181724399,1.325724,158.07,158.05,50.9]
[1754181724928,1.325724,158.07,158.06,50.9]
[1754181725113,1.325724,158.07,158.06,51.58]
[1754181725433,1.325724,158.07,158.06,64.96385085]
[1754181725628,1.325724,158.07,158.06,51.58]
[1754181725817,1.325724,158.07,158.06,64.96385085]
[1754181726205,1.325724,158.07,158.06,51.58]
[1754181726390,1.325724,158.07,158.03,0.68]
[1754181726596,1.325724,158.07,158.04,76.82]
[1754181727001,1.325724,158.07,158.05,0.68]
[1754181727195,1.325724,158.07,158.04,26.0]
[1754181727394,1.325724,158.07,158.05,0.68]
[1754181727695,1.325724,158.07,158.06,64.86385085]
[1754181728015,1.325724,158.07,158.06,51.48]
[1754181728227,1.325724,158.07,158.04,26.0]
[1754181728412,1.325724,158.07,158.06,50.76]
[1754181728906,1.325724,158.07,158.06,51.44]
[1754181729495,1.325724,158.07,158.06,64.82385085]
[1754181729700,1.325724,158.07,158.06,81.60853482]
[1754181730107,1.325724,158.07,158.06,94.99238582]
[1754181730308,16.78468397,158.19,158.07,16.78468397]
[1754181730623,0.66,158.27,158.22,26.0]
[1754181730800,14.04385085,158.3,158.25,13.38385085]
[1754181730994,0.66,158.29,158.26,50.74]
[1754181731310,26.0,158.31,158.27,50.7]
[1754181731514,13.38385085,158.29,158.27,50.7]
[1754181731715,0.66,158.28,158.27,50.7]
[1754181732095,14.04385085,158.28,158.23,13.38385085]
[1754181732314,0.66,158.27,158.24,50.62]
[1754181732515,13.38385085,158.26,158.24,50.62]
[1754181732721,0.66,158.25,158.22,26.0]
[1754181732906,26.7677017,158.23,158.0,10.0]
[1754181733126,26.0,158.18,158.03,0.63279124]
[1754181733322,13.38385085,158.1,158.07,51.58]
[1754181733508,26.66,158.12,158.07,51.58]
[1754181733867,13.38385085,158.11,158.07,51.58]
[1754181734135,0.66,158.12,158.07,51.58]
[1754181734436,13.38385085,158.1,158.07,51.58]
[1754181735665,26.0,158.13,158.08,14.06385085]
[1754181735666,13.38385085,158.13,158.08,14.06385085]
[1754181735955,13.38385085,158.14,158.09,14.06385085]
[1754181736167,26.66,158.18,158.1,52.1]
[1754181736326,13.38385085,158.16,158.11,13.38385085]
[1754181736533,13.38385085,158.12,158.06,27.44770185]
[1754181736729,13.38385085,158.1,158.07,51.42]
[1754181737027,13.38385085,158.12,158.07,64.80385085]
[1754181737231,13.38385085,158.1,158.07,51.42]
[1754181737553,13.38385085,158.08,158.06,13.383851]
[1754181737745,13.38385085,158.07,158.06,13.383851]
[1754181737947,14.04385085,158.07,157.99,13.38385085]
[1754181738148,13.38385085,158.03,158.0,51.36]
[1754181738758,13.38385085,158.02,158.0,51.36]
[1754181739139,13.38385085,158.04,158.0,51.36]
[1754181739454,26.0,158.07,158.02,13.38385085]
[1754181739455,13.38385085,158.07,158.02,13.38385085]
[1754181739661,13.38385085,158.08,158.03,14.06385085]
[1754181739826,13.38385085,158.07,158.04,51.98]
[1754181740030,13.38385085,158.05,158.03,51.28]
[1754181740228,13.38385085,158.04,158.03,51.28]
[1754181741527,0.66,158.12,158.03,65.34385085]
[1754181741729,13.38385085,158.09,158.04,13.38385085]
[1754181741923,13.38385085,158.09,158.04,14.06385085]
[1754181742528,0.66,158.12,158.05,17.46468397]
[1754181742728,13.38385085,158.1,158.05,30.84853482]
[1754181742968,13.38385085,158.11,158.06,14.06385085]
[1754181743266,13.38385085,158.12,158.07,65.18385085]
[1754181743471,13.38385085,158.14,158.09,13.38385085]
[1754181743632,42.78468397,158.17,158.1,51.08]
[1754181743833,13.38385085,158.11,158.1,51.08]
[1754181744048,13.38385085,158.12,158.1,51.08]
[1754181744379,13.38385085,158.21,158.1,51.76]
[1754181744542,13.38385085,158.14,158.1,51.76]
[1754181744744,0.66,158.17,158.1,51.08]
[1754181744985,13.38385085,158.15,158.1,64.46385085]
[1754181745181,0.66,158.17,158.1,64.46385085]
[1754181745182,13.38385085,158.14,158.1,51.08]
[1754181745667,13.38385085,158.12,158.11,51.04]
[1754181746043,14.04385085,158.12,158.08,51.0]
[1754181746244,13.38385085,158.09,158.0,14.06385085]
[1754181746465,0.66,158.09,158.01,51.0]
[1754181746676,13.38385085,158.06,158.01,64.38385085]
[1754181746856,13.38385085,158.06,158.01,65.06385085]
[1754181747085,13.38385085,158.07,158.02,65.02385085]
[1754181747287,13.38385085,158.07,158.03,0.68]
[1754181747476,13.38385085,158.11,158.06,13.38385085]
[1754181747680,13.38385085,158.11,158.07,50.98]
[1754181748066,13.38385085,158.11,158.07,51.66]
[1754181748279,26.0,158.16,158.07,51.66]
[1754181748280,13.38385085,158.12,158.08,0.68]
[1754181748605,0.66,158.16,158.09,13.38385085]
[1754181748767,0.66,158.16,158.08,0.68]
[1754181748768,13.38385085,158.14,158.08,0.68]
[1754181748968,13.38385085,158.14,158.09,13.38385085]
[1754181749170,13.38385085,158.15,158.1,14.06385085]
[1754181749391,13.38385085,158.15,158.11,50.9]
[1754181749692,13.38385085,158.17,158.12,14.06385085]
[1754181749893,13.38385085,158.15,158.12,0.68]
[1754181750099,13.38385085,158.16,158.12,0.68]
[1754181750868,42.78468397,158.21,158.14,13.38385085]
[1754181751068,13.38385085,158.21,158.16,13.38385085]
[1754181751300,50.84,158.32,158.18,13.38385085]
[1754181751301,0.68,158.26,158.18,13.38385085]
[1754181751601,13.38385085,158.23,158.19,64.22385085]
[1754181751805,0.68,158.26,158.19,64.90385085]
[1754181752011,13.38385085,158.25,158.2,14.06385085]
[1754181752302,13.38385085,158.28,158.23,13.38385085]
[1754181752493,13.38385085,158.28,158.24,50.86]
[1754181752697,13.38385085,158.29,158.24,64.92385085]
[1754181752915,13.38385085,158.29,158.24,51.54]
[1754181753507,13.38385085,158.28,158.24,51.54]
[1754181754500,13.38385085,158.29,158.24,64.24385085]
[1754181754701,13.38385085,158.28,158.24,64.24385085]
[1754181755095,13.38385085,158.28,158.24,64.92385085]
[1754181755484,0.03,158.31,158.24,50.86]
[1754181755796,0.71,158.31,158.24,50.86]
[1754181756005,13.38385085,158.29,158.24,64.24385085]
[1754181756191,13.38385085,158.27,158.25,50.66]
[1754181756506,14.06385085,158.27,158.25,50.66]
[1754181756720,13.38385085,158.27,158.25,50.66]
[1754181757010,0.03,158.28,158.25,64.72385085]
[1754181757196,0.03,158.28,158.25,50.66]
[1754181757397,13.41385085,158.28,158.26,50.58]
[1754181757599,0.03,158.28,158.26,50.58]
[1754181757799,13.41385085,158.28,158.26,50.58]
[1754181758000,0.03,158.28,158.26,50.58]
[1754181758192,13.41385085,158.28,158.26,50.58]
[1754181758602,13.38385085,158.27,158.26,50.58]
[1754181758922,14.06385085,158.27,158.24,50.52]
[1754181759126,13.38385085,158.27,158.24,50.52]
[1754181759483,13.38385085,158.25,158.24,50.52]
[1754181760100,13.41385085,158.28,158.24,50.52]
[1754181760308,13.41385085,158.28,158.24,63.90385085]
[1754181760309,0.03,158.28,158.24,63.90385085]
[1754181760484,0.03,158.28,158.25,14.06385085]
[1754181760983,0.03,158.28,158.26,0.68]
[1754181761188,0.03,158.28,158.27,39.38385085]
[1754181761408,0.03,158.28,158.27,40.06385085]
[1754181761606,0.03,158.28,158.26,13.383851]
[1754181761811,0.03,158.28,158.24,90.58385085]
[1754181762025,13.38385085,158.27,158.24,50.52]
[1754181762192,13.38385085,158.26,158.21,26.0]
[1754181762390,13.38385085,158.22,158.17,13.38385085]
[1754181762595,0.68,158.25,158.18,50.58]
[1754181762827,13.38385085,158.19,158.11,0.68]
[1754181762998,16.78468397,158.24,158.12,50.82]
[1754181762999,13.38385085,158.15,158.12,50.82]
[1754181763207,13.38385085,158.15,158.08,13.38385085]
[1754181763208,13.38385085,158.14,158.08,13.38385085]
[1754181763521,13.38385085,158.14,158.06,45.64]
[1754181763522,13.38385085,158.14,158.11,50.86]
[1754181764306,0.68,158.18,158.11,50.86]
[1754181764532,13.38385085,158.16,158.11,64.92385085]
[1754181764701,13.38385085,158.15,158.12,0.68]
[1754181764903,13.38385085,158.16,158.12,0.68]
[1754181765104,13.38385085,158.16,158.11,50.86]
[1754181765305,13.38385085,158.16,158.11,51.54]
[1754181765528,26.0,158.2,158.13,13.38385085]
[1754181765692,13.38385085,158.19,158.14,14.06385085]
[1754181765896,0.68,158.22,158.15,51.46]
[1754181766121,13.38385085,158.22,158.17,13.38385085]
[1754181766503,0.03,158.28,158.19,13.38385085]
[1754181766703,13.38385085,158.25,158.2,64.16385085]
[1754181766920,13.41385085,158.28,158.23,13.38385085]
[1754181767101,13.41385085,158.28,158.24,50.78]
[1754181767503,13.38385085,158.25,158.18,0.68]
[1754181767811,0.68,158.27,158.18,26.0]
[1754181767812,13.38385085,158.22,158.18,26.0]
[1754181768019,17.46468397,158.27,158.18,26.0]
[1754181768020,0.68,158.24,158.18,26.0]
[1754181768344,13.38385085,158.25,158.2,13.38385085]
[1754181768647,0.03,158.28,158.22,13.38385085]
[1754181768852,13.41385085,158.28,158.23,13.38385085]
[1754181769085,0.03,158.28,158.25,13.38385085]
[1754181769244,0.03,158.28,158.26,50.7]
[1754181769437,0.03,158.28,158.26,51.38]
[1754181769859,0.03,158.28,158.26,64.76385085]
[1754181770064,0.03,158.28,158.27,0.68]
[1754181770248,0.03,158.28,158.26,64.08385085]
[1754181770249,0.03,158.28,158.26,50.7]
[1754181770459,0.03,158.28,158.27,0.68]
[1754181770842,0.03,158.28,158.27,14.06385085]
[1754181771571,0.03,158.28,158.27,30.84853482]
[1754181772454,0.03,158.28,158.27,33.38058082]
[1754181773669,0.03,158.28,158.27,39.69889762]
[1754181773876,0.03,158.3,158.29,30.16853482]
[1754181774080,0.03,158.3,158.29,81.26028666]
[1754181774263,14.06385085,158.43,158.34,16.78468397]
[1754181774567,14.06385085,158.43,158.38,13.38385085]
[1754181774762,14.06385085,158.43,158.38,63.82385085]
[1754181774980,14.06385085,158.46,158.38,81.28853482]
[1754181775668,14.06385085,158.46,158.38,67.90468397]
[1754181775860,14.06385085,158.46,158.38,81.28853482]
[1754181775861,0.68,158.46,158.38,81.28853482]
[1754181776074,13.38385085,158.45,158.38,81.28853482]
[1754181776888,0.68,158.46,158.38,81.28853482]
[1754181777064,14.06385085,158.46,158.38,81.28853482]
[1754181777258,13.38385085,158.45,158.38,81.28853482]
[1754181777874,1.355724,158.39,158.38,81.28853482]
[1754181778762,1.355724,158.39,158.38,67.90468397]
[1754181778960,1.355724,158.39,158.38,30.84853482]
[1754181779178,1.355724,158.39,158.38,81.12853482]
[1754181779666,6.07081872,158.47,158.42,16.78468397]
[1754181779987,6.07081872,158.47,158.44,42.78468397]
[1754181780156,6.07081872,158.47,158.4,0.63131313]
[1754181780355,5.07081872,158.47,158.46,13.38385085]
[1754181780587,5.07081872,158.47,158.46,80.52853482]
[1754181780964,5.07081872,158.47,158.46,81.20853482]
[1754181780965,4.25081872,158.47,158.46,81.20853482]
[1754181781361,0.1,158.55,158.49,42.78468397]
[1754181781575,0.1,158.55,158.54,13.38385085]
[1754181781761,0.1,158.55,158.54,63.88385085]
[1754181781962,0.1,158.55,158.54,81.29929046]
[1754181782185,0.1,158.55,158.54,107.29929046]
[1754181783663,0.69,158.65,158.59,26.0]
[1754181784023,0.69,158.69,158.64,13.38385085]
[1754181784177,0.69,158.69,158.67,13.38385085]
[1754181784375,0.69,158.69,158.68,50.42]
[1754181784968,1.325724,158.71,158.68,64.43404999]
[1754181785285,1.325724,158.71,158.7,13.38385085]
[1754181785507,1.325724,158.71,158.7,63.76385085]
[1754181785668,1.325724,158.71,158.7,106.54853482]
[1754181786689,1.355724,158.71,158.7,106.54853482]
[1754181787287,1.355724,158.71,158.7,107.17865454]
[1754181787601,1.355724,158.71,158.7,81.17865454]
[1754181787812,1.355724,158.71,158.7,91.17865454]
[1754181788007,1.355724,158.71,158.7,87.47985176]
[1754181788201,1.355724,158.71,158.7,81.17865454]
[1754181788514,1.355724,158.71,158.7,91.17865454]
[1754181789294,1.355724,158.71,158.7,81.05865454]
[1754181789617,1.355724,158.71,158.7,30.79865454]
[1754181789817,1.355724,158.71,158.7,81.05865454]
[1754181790690,1.355724,158.71,158.7,91.05865454]
[1754181790884,0.855724,158.71,158.7,67.67480369]
[1754181791204,0.855724,158.71,158.7,13.38385085]
[1754181791400,0.855724,158.71,158.7,63.68385085]
[1754181791611,0.855724,158.71,158.7,106.46853482]
[1754181791916,0.855724,158.71,158.7,81.09865454]
[1754181792085,1.545724,158.71,158.66,45.5]
[1754181792282,0.69,158.7,158.67,13.38385085]
[1754181792488,0.69,158.7,158.66,45.5]
[1754181792489,0.69,158.69,158.66,45.5]
[1754181792797,0.69,158.69,158.68,13.38385085]
[1754181792996,0.69,158.68,158.67,50.32]
[1754181793408,14.07385085,158.68,158.67,49.6]
[1754181793618,14.07385085,158.68,158.67,50.32]
[1754181793826,14.07385085,158.68,158.67,48.73]
[1754181793990,0.855724,158.71,158.67,48.73]
[1754181794191,0.59,158.7,158.67,48.73]
[1754181794488,0.855724,158.71,158.69,13.38385085]
[1754181794694,0.855724,158.71,158.7,107.19865454]
[1754181794900,0.855724,158.71,158.6,66.61628495]
[1754181794901,0.855724,158.71,158.67,26.63023886]
[1754181795087,0.855724,158.71,158.7,56.16853482]
[1754181795284,0.855724,158.71,158.7,106.56853482]
[1754181795485,0.855724,158.71,158.7,107.25853482]
[1754181795695,0.135724,158.71,158.7,117.25853482]
[1754181795988,0.59,158.81,158.75,16.78468397]
[1754181796209,0.59,158.81,158.77,13.38385085]
[1754181796410,0.59,158.81,158.78,50.38]
[1754181796617,6.597968,158.84,158.79,13.38385085]
[1754181796785,6.597968,158.84,158.8,50.38]
[1754181796988,0.69,158.83,158.8,50.38]
[1754181797332,19.29181885,158.84,158.8,50.38]
[1754181797333,0.69,158.82,158.8,50.38]
[1754181797623,0.1211184,158.83,158.8,63.76385085]
[1754181797995,0.8111184,158.83,158.8,63.76385085]
[1754181798591,0.1211184,158.83,158.8,63.76385085]
[1754181798802,0.1211184,158.83,158.81,13.38385085]
[1754181799120,0.1211184,158.83,158.82,63.70385085]
[1754181799429,0.1211184,158.83,158.82,80.48853482]
[1754181799719,0.1211184,158.83,158.82,107.80817844]
[1754181799923,0.1211184,158.83,158.82,81.80817844]
[1754181800143,5.907968,158.84,158.83,26.78468397]
[1754181800427,5.907968,158.84,158.83,30.85853482]
[1754181800934,5.907968,158.84,158.82,0.62964362]
[1754181801099,5.907968,158.84,158.83,13.38385085]
[1754181801296,5.907968,158.84,158.83,63.80385085]
[1754181801517,5.907968,158.84,158.83,50.42]
[1754181801727,5.907968,158.84,158.83,80.58853482]
[1754181802026,6.597968,158.84,158.77,16.78468397]
[1754181802217,5.907968,158.84,158.82,13.38385085]
[1754181802422,5.907968,158.84,158.78,51.04980224]
[1754181802423,5.907968,158.84,158.81,39.38385085]
[1754181802609,0.69,158.83,158.82,50.4]
[1754181803000,5.907968,158.84,158.82,50.4]
[1754181803216,0.69,158.83,158.82,50.4]
[1754181803413,0.69,158.83,158.77,30.16853482]
[1754181803610,13.38385085,158.8,158.78,50.4]
[1754181803824,0.69,158.79,158.78,50.4]
[1754181804053,14.07385085,158.79,158.71,3.07381172]
[1754181804329,0.69,158.78,158.72,50.4]
[1754181804513,13.38385085,158.76,158.72,50.4]
[1754181804712,14.07385085,158.76,158.72,50.4]
[1754181805029,14.07385085,158.78,158.73,30.16853482]
[1754181805213,13.38385085,158.77,158.72,63.78385085]
[1754181805536,0.69,158.81,158.75,13.38385085]
[1754181805703,13.38385085,158.8,158.76,50.36]
[1754181805899,14.07385085,158.8,158.76,50.36]
[1754181806101,0.69,158.83,158.79,13.38385085]
[1754181806328,5.907968,158.84,158.8,63.72385085]
[1754181806638,5.907968,158.84,158.82,13.38385085]
[1754181806844,5.907968,158.84,158.83,30.85853482]
[1754181807329,5.907968,158.84,158.83,56.85853482]
[1754181807828,5.907968,158.84,158.82,13.38385085]
[1754181808221,5.907968,158.84,158.83,13.38385085]
[1754181808401,5.907968,158.84,158.83,14.07385085]
[1754181808598,5.907968,158.84,158.81,76.34]
[1754181808799,0.69,158.83,158.82,50.28]
[1754181809104,0.69,158.83,158.82,50.3]
[1754181809538,14.07385085,158.83,158.82,50.3]
[1754181810338,14.07385085,158.83,158.76,5.907968]
[1754181810537,13.38385085,158.79,158.77,50.3]
[1754181810748,5.907968,158.84,158.77,50.3]
[1754181810749,14.07385085,158.78,158.77,50.3]
[1754181810951,0.69,158.78,158.77,50.3]
[1754181811150,13.38385085,158.8,158.77,50.3]
[1754181811329,13.38385085,158.81,158.77,50.3]
[1754181811532,13.38385085,158.8,158.77,50.3]
[1754181811736,13.38385085,158.82,158.77,63.68385085]
[1754181811939,13.38385085,158.81,158.77,50.3]
[1754181812454,13.38385085,158.78,158.77,50.3]
[1754181812624,14.08385085,158.78,158.77,50.3]
[1754181812929,0.7,158.78,158.77,50.3]
[1754181813247,14.08385085,158.78,158.77,50.3]
[1754181814123,0.7,158.83,158.77,63.68385085]
[1754181814344,14.08385085,158.83,158.78,13.38385085]
[1754181814564,5.907968,158.84,158.78,13.38385085]
[1754181814730,5.907968,158.84,158.83,13.38385085]
[1754181814916,5.907968,158.84,158.83,63.58385085]
[1754181815126,5.907968,158.84,158.83,64.24385085]
[1754181815447,5.907968,158.84,158.83,81.02853482]
[1754181815631,5.187968,158.84,158.83,81.65813879]
[1754181816675,5.187968,158.84,158.83,14.67345482]
[1754181816956,5.187968,158.84,158.83,80.93813879]
[1754181817163,5.187968,158.84,158.83,81.54813879]
[1754181817527,5.187968,158.84,158.83,97.84417858]
[1754181817727,0.03,158.86,158.85,26.78468397]
[1754181817936,0.7,158.96,158.89,16.78468397]
[1754181818137,0.7,158.96,158.9,50.76932662]
[1754181818438,0.7,158.96,158.93,13.38385085]
[1754181818637,0.7,158.96,158.95,13.38385085]
[1754181818836,0.8,158.99,158.95,13.38385085]
[1754181819155,0.7,158.98,158.94,63.50385085]
[1754181819362,0.7,158.98,158.95,50.12]
[1754181819568,13.38385085,158.97,158.95,50.12]
[1754181819770,0.7,158.96,158.95,50.12]
[1754181820068,0.7,158.98,158.95,50.12]
[1754181820376,0.7,158.96,158.95,50.12]
[1754181820670,14.18385085,158.99,158.95,50.12]
[1754181820832,0.7,158.98,158.95,50.12]
[1754181821163,0.03,158.96,158.95,50.12]
[1754181822541,0.73,158.96,158.95,50.12]
[1754181823337,0.03,158.96,158.95,50.12]
[1754181823574,0.03,158.96,158.95,63.50385085]
[1754181826258,0.73,158.96,158.95,50.12]
[1754181826460,0.73,158.96,158.95,63.50385085]
[1754181826461,0.03,158.96,158.95,63.50385085]
[1754181826850,0.03,158.96,158.95,50.12]
[1754181827055,0.03,158.96,158.95,63.50385085]
[1754181827256,0.73,158.96,158.95,50.12]
[1754181827457,0.03,158.96,158.95,63.50385085]
[1754181829873,0.03,158.96,158.95,80.28853482]
[1754181830076,0.03,158.96,158.95,99.35853482]
[1754181830379,0.1,158.99,158.95,86.57982138]
[1754181830581,0.1,158.99,158.98,42.78468397]
[1754181830771,0.1,158.99,158.98,106.87754475]
[1754181831278,0.1,158.99,158.98,120.2613956]
[1754181831482,1.2954444,159.03,159.02,42.78468397]
[1754181831661,1.2954444,159.03,159.02,106.87738653]
[1754181832060,1.2954444,159.03,159.02,113.16590369]
[1754181832970,1.2954444,159.03,159.02,106.87738653]
[1754181833365,1.2954444,159.03,159.02,110.03745421]
[1754181833567,1.2954444,159.03,159.02,110.01745421]
[1754181835486,1.2954444,159.03,159.02,96.63360336]
[1754181835787,1.2954444,159.03,159.02,129.08745421]
[1754181835963,1.2954444,159.03,159.02,109.3886025]
[1754181836162,1.2954444,159.03,159.02,110.01745421]
[1754181836684,1.2954444,159.03,159.02,59.95745421]
[1754181836884,1.2954444,159.03,159.02,109.99745421]
[1754181839858,0.7,159.11,159.06,26.0]
[1754181840057,0.1,159.12,159.1,39.38385085]
[1754181840380,0.1,159.12,159.11,50.04]
[1754181840578,0.1,159.12,159.11,63.42385085]
[1754181841013,0.79,159.12,159.11,50.04]
[1754181842416,14.17385085,159.12,159.11,50.04]
[1754181842909,14.17385085,159.12,159.11,49.32]
[1754181843087,0.79,159.12,159.06,13.38385]
[1754181843413,0.79,159.12,159.07,63.40385085]
[1754181843723,0.79,159.12,159.04,26.0]
[1754181843724,0.69,159.11,159.1,39.38385085]
[1754181843934,0.69,159.11,159.1,76.02]
[1754181844188,0.69,159.11,159.1,50.02]
[1754181844635,0.69,159.11,159.1,63.40385085]
[1754181844997,0.1,159.12,159.1,89.40385085]
[1754181845204,0.1,159.12,159.11,13.38385085]
[1754181846521,0.1,159.12,159.11,31.44703082]
[1754181846845,5.84511727,159.17,159.11,24.34814006]
[1754181847000,5.84511727,159.17,159.16,39.38385085]
[1754181847322,0.69,159.29,159.2,26.0]
[1754181847628,0.69,159.29,159.27,13.38385085]
[1754181847815,0.69,159.29,159.28,63.38385085]
[1754181848038,0.69,159.32,159.28,63.38385085]
[1754181848237,0.69,159.32,159.3,13.38385085]
[1754181848431,0.69,159.32,159.31,50.62770698]
[1754181849151,0.69,159.32,159.31,64.01155783]
[1754181849442,0.69,159.32,159.31,50.62770698]
[1754181849743,0.69,159.32,159.31,50.0]
[1754181850336,14.07385085,159.32,159.31,49.98]
[1754181850745,0.69,159.32,159.31,49.98]
[1754181851220,0.12954444,159.35,159.3,0.62774639]
[1754181851539,13.38385085,159.31,159.24,26.0]
[1754181851712,0.69,159.32,159.24,26.0]
[1754181851713,13.38385085,159.29,159.25,49.96]
[1754181851908,0.69,159.28,159.25,63.34385085]
[1754181852307,0.69,159.28,159.22,0.6280618]
[1754181852308,0.69,159.27,159.22,0.6280618]
[1754181852619,0.69,159.26,159.23,49.96]
[1754181852819,0.69,159.25,159.23,63.34385085]
[1754181853019,14.07385085,159.28,159.24,13.38385085]
[1754181853222,13.38385085,159.28,159.24,13.38385085]
[1754181853418,0.69,159.27,159.23,49.96]
[1754181853649,0.69,159.27,159.23,63.34385085]
[1754181853853,0.69,159.27,159.24,13.38385085]
[1754181854009,0.69,159.26,159.23,49.96]
[1754181854215,0.69,159.25,159.23,49.96]
[1754181854529,14.10385085,159.31,159.24,16.78468397]
[1754181854709,14.10385085,159.31,159.26,13.38385085]
[1754181854913,0.69,159.3,159.27,49.96]
[1754181855244,0.69,159.3,159.17,24.55842062]
[1754181855245,13.38385085,159.28,159.2,39.38385085]
[1754181855448,13.38385085,159.24,159.19,3.18577096]
[1754181855647,0.69,159.26,159.21,13.38385085]
[1754181855832,0.69,159.26,159.22,13.38385085]
[1754181856030,0.69,159.26,159.23,49.96]
[1754181856349,13.38385085,159.24,159.18,13.38385085]
[1754181856659,0.69,159.27,159.19,49.96]
[1754181856849,0.69,159.27,159.21,13.38385085]
[1754181857062,0.69,159.27,159.24,13.38385085]
[1754181857258,14.07385085,159.27,159.25,49.94]
[1754181857427,0.69,159.3,159.25,63.32385085]
[1754181857624,0.03,159.31,159.25,63.32385085]
[1754181857625,0.69,159.29,159.25,49.94]
[1754181857828,13.38385085,159.27,159.22,13.38385085]
[1754181858138,0.69,159.26,159.23,63.32385085]
[1754181858338,13.38385085,159.28,159.23,63.32385085]
[1754181858525,0.69,159.29,159.24,13.38385085]
[1754181858526,14.07385085,159.29,159.24,13.38385085]
[1754181858726,0.69,159.28,159.24,13.38385085]
[1754181859042,0.69,159.27,159.23,49.94]
[1754181859255,0.69,159.27,159.23,63.32385085]
[1754181859422,0.03,159.31,159.23,49.94]
[1754181859627,14.07385085,159.27,159.23,49.94]
[1754181859850,14.07385085,159.26,159.23,49.94]
[1754181860128,0.69,159.3,159.24,13.38385085]
[1754181860333,0.69,159.3,159.23,63.32385085]
[1754181860540,13.38385085,159.27,159.23,49.94]
[1754181860728,0.69,159.26,159.23,49.94]
[1754181860923,0.69,159.25,159.23,49.94]
[1754181861539,14.07385085,159.28,159.23,63.32385085]
[1754181861752,0.69,159.27,159.23,63.32385085]
[1754181861960,13.38385085,159.29,159.24,13.38385085]
[1754181862129,0.69,159.27,159.24,13.38385085]
[1754181862330,13.38385085,159.27,159.23,49.94]
[1754181862530,0.69,159.26,159.23,49.94]
[1754181862737,0.69,159.25,159.23,49.94]
[1754181862953,13.38385085,159.27,159.23,49.94]
[1754181863148,0.69,159.27,159.23,49.94]
[1754181864067,0.69,159.26,159.23,49.94]
[1754181864570,14.07385085,159.29,159.24,13.38385085]
[1754181864751,0.69,159.28,159.23,63.32385085]
[1754181864949,14.07385085,159.28,159.23,63.32385085]